bitfinex-derivatives/quotes_ETHF0:USTF0_20250421
["timestamp","ask_amount","ask_price","bid_price","bid_amount"]
[1745279403818,1.7897,1578.6,1578.5,2.9599]
[1745279404324,1.7897,1578.7,1578.6,1.26692]
[1745279404522,3.5794,1578.7,1578.6,2.95982]
[1745279404925,3.5794,1578.7,1578.6,1.26692]
[1745279406126,4.84623,1578.7,1578.6,1.26692]
[1745279406424,3.5794,1578.7,1578.6,1.26692]
[1745279406829,3.2078,1578.8,1578.7,1.26683]
[1745279407330,3.2078,1578.8,1578.7,7.41283]
[1745279407522,4.8977,1578.8,1578.7,7.41283]
[1745279407930,6.16445,1578.8,1578.7,7.41283]
[1745279408229,6.16445,1578.8,1578.7,1.26683]
[1745279408728,1.26683,1578.7,1578.6,7.02277]
[1745279409026,1.26683,1578.7,1578.6,5.34187]
[1745279409027,3.06213,1578.7,1578.6,5.34187]
[1745279410323,1.26699,1578.6,1578.4,1.26701]
[1745279410627,0.8387,1578.5,1578.4,1.26701]
[1745279411027,2.5687,1578.5,1578.4,1.26701]
[1745279412330,2.5687,1578.5,1578.4,7.41301]
[1745279412528,2.5687,1578.5,1578.4,9.10481]
[1745279412729,0.8406,1578.6,1578.5,1.267]
[1745279412930,0.8406,1578.6,1578.5,2.9588]
[1745279413132,0.8406,1578.6,1578.5,9.1048]
[1745279413631,3.86139,1578.7,1578.6,1.26692]
[1745279413828,3.86139,1578.7,1578.6,3.05802]
[1745279414336,2.5945,1578.7,1578.6,3.05802]
[1745279415026,3.86133,1578.7,1578.6,3.05802]
[1745279416724,2.5945,1578.7,1578.6,3.05802]
[1745279416925,3.86133,1578.7,1578.6,3.05802]
[1745279419329,5.36118,1578.8,1578.7,1.26683]
[1745279419529,2.15338,1578.8,1578.7,2.97833]
[1745279419730,9.83274,1578.9,1578.8,1.26675]
[1745279419937,9.83274,1578.9,1578.8,3.07825]
[1745279420627,9.83274,1578.9,1578.8,1.8115]
[1745279421638,1.26675,1578.8,1578.7,1.26677]
[1745279421840,2.92735,1578.8,1578.7,3.07827]
[1745279422033,2.92735,1578.8,1578.7,3.09317]
[1745279422235,2.92735,1578.8,1578.7,9.22427]
[1745279422833,2.92735,1578.8,1578.7,7.9575]
[1745279423230,6.13515,1578.8,1578.7,3.07833]
[1745279424234,6.13515,1578.8,1578.7,9.22433]
[1745279424940,3.2078,1578.8,1578.7,9.22433]
[1745279427041,4.47455,1578.8,1578.7,9.22433]
[1745279427242,3.2078,1578.8,1578.7,3.07833]
[1745279428347,7.14135,1579.0,1578.7,1.8115]
[1745279428650,8.00285,1579.0,1578.9,1.26667]
[1745279429445,5.33595,1579.0,1578.9,3.03947]
[1745279429740,5.33595,1579.0,1578.9,2.6746]
[1745279430044,5.33595,1579.0,1578.9,1.7728]
[1745279430246,7.13745,1579.0,1578.9,3.03947]
[1745279435444,4.0683,1579.2,1579.1,1.26651]
[1745279435745,9.07368,1579.3,1579.2,1.26643]
[1745279435947,1.26644,1579.2,1579.1,1.26646]
[1745279436249,9.98492,1579.3,1579.2,6.146]
[1745279436859,7.25042,1579.3,1579.2,7.9554]
[1745279437457,7.25042,1579.3,1579.2,9.22183]
[1745279437950,7.25042,1579.3,1579.2,7.9554]
[1745279438151,9.07372,1579.3,1579.2,7.9554]
[1745279438358,9.07372,1579.3,1579.2,9.22183]
[1745279438558,9.07372,1579.3,1579.2,7.9554]
[1745279439859,3.08972,1579.3,1579.2,7.9554]
[1745279440261,3.08972,1579.3,1579.2,1.8094]
[1745279441057,3.08972,1579.3,1579.2,9.22183]
[1745279441261,3.08972,1579.3,1579.2,7.9554]
[1745279442262,3.08972,1579.3,1579.2,1.8094]
[1745279442765,1.26642,1579.3,1579.2,3.07583]
[1745279443852,1.26626,1579.5,1579.4,1.26627]
[1745279444553,1.26626,1579.5,1579.4,3.77087]
[1745279444758,1.26626,1579.5,1579.4,2.5046]
[1745279444957,11.7617,1579.6,1579.4,2.5046]
[1745279445162,11.7617,1579.6,1579.5,1.674]
[1745279445163,13.02781,1579.6,1579.5,1.674]
[1745279445361,10.45791,1579.6,1579.5,2.94019]
[1745279445657,10.45791,1579.6,1579.5,1.674]
[1745279446157,10.45791,1579.6,1579.5,7.82]
[1745279447270,10.45791,1579.6,1579.5,9.08619]
[1745279447872,10.45791,1579.6,1579.5,7.82]
[1745279448867,4.47391,1579.6,1579.5,7.82]
[1745279449077,4.47391,1579.6,1579.5,48.62]
[1745279453668,5.39171,1579.6,1579.5,48.62]
[1745279453873,5.39171,1579.6,1579.5,7.82]
[1745279457172,4.47391,1579.6,1579.5,7.82]
[1745279458184,1.26611,1579.6,1579.5,7.82]
[1745279459676,1.26611,1579.6,1579.5,6.146]
[1745279459880,3.03841,1579.6,1579.5,6.146]
[1745279461178,1.26619,1579.5,1579.4,0.0149]
[1745279461379,6.24629,1579.5,1579.4,0.0149]
[1745279461882,1.26635,1579.3,1579.2,1.8226]
[1745279462067,3.2078,1579.3,1578.9,4.086]
[1745279462382,4.47431,1579.1,1578.9,4.086]
[1745279462577,4.47431,1579.1,1578.9,5.831]
[1745279462776,6.21871,1579.1,1578.9,5.831]
[1745279463267,6.21871,1579.1,1579.0,6.15549878]
[1745279463473,12.20271,1579.1,1579.0,6.15549878]
[1745279464179,12.20271,1579.1,1579.0,0.00949878]
[1745279465684,17.20271,1579.1,1579.0,0.00949878]
[1745279467485,12.20271,1579.1,1579.0,0.00949878]
[1745279467886,11.29051,1579.1,1579.0,0.00949878]
[1745279468077,10.45831,1579.1,1579.0,6.15549878]
[1745279468485,10.45831,1579.1,1579.0,7.97029878]
[1745279470888,10.45831,1579.1,1579.0,8.81289878]
[1745279471088,10.45831,1579.1,1579.0,10.07948878]
[1745279471385,7.25051,1579.1,1579.0,10.07948878]
[1745279471789,1.2665,1579.2,1579.1,1.26651]
[1745279471989,1.26643,1579.3,1579.1,3.06401]
[1745279472189,1.26642,1579.3,1579.2,2.7186]
[1745279473286,1.26642,1579.3,1579.2,8.8646]
[1745279474289,3.09822,1579.3,1579.2,1.7975]
[1745279475293,3.09822,1579.3,1579.2,7.9435]
[1745279476293,1.26642,1579.3,1579.2,7.9435]
[1745279479290,1.26642,1579.3,1579.2,3.06393]
[1745279479788,1.26642,1579.3,1579.2,1.7975]
[1745279480194,1.26642,1579.3,1579.2,7.9435]
[1745279481995,1.26642,1579.3,1579.2,9.20993]
[1745279482297,1.26642,1579.3,1579.2,7.9435]
[1745279483194,1.26642,1579.3,1579.2,9.20993]
[1745279483397,1.26642,1579.3,1579.2,7.9435]
[1745279483796,1.26642,1579.3,1579.2,9.20993]
[1745279484093,1.26642,1579.3,1579.2,7.9435]
[1745279485096,1.26642,1579.3,1579.2,1.7975]
[1745279487097,1.26642,1579.3,1579.2,7.9435]
[1745279489602,2.16222,1579.3,1579.2,7.9435]
[1745279489802,3.82532,1579.3,1579.2,7.9435]
[1745279492802,2.16222,1579.3,1579.2,7.9435]
[1745279493002,1.26642,1579.3,1579.2,7.9435]
[1745279494405,1.26642,1579.3,1579.2,9.20993]
[1745279495305,1.26642,1579.3,1579.2,7.9435]
[1745279516822,7.61388265,1579.3,1579.2,7.9435]
[1745279519738,1.26642,1579.3,1579.2,7.9435]
[1745279520536,1.26642,1579.3,1579.2,9.20993]
[1745279520735,1.26642,1579.3,1579.2,7.9435]
[1745279522044,1.26642,1579.3,1579.2,9.20993]
[1745279523033,1.26642,1579.3,1579.2,7.9435]
[1745279524746,1.26642,1579.3,1579.2,9.20993]
[1745279525246,1.26642,1579.3,1579.2,7.9435]
[1745279528746,1.26642,1579.3,1579.2,9.20993]
[1745279528949,1.26642,1579.3,1579.2,7.9435]
[1745279529150,1.26642,1579.3,1579.2,8.7807]
[1745279529950,1.26642,1579.3,1579.2,10.04713]
[1745279530142,1.26642,1579.3,1579.2,8.7807]
[1745279531453,1.26642,1579.3,1579.2,10.04713]
[1745279534049,3.2078,1579.4,1579.2,8.7807]
[1745279534249,4.47414,1579.4,1579.3,2.96025]
[1745279534454,1.26634,1579.4,1579.3,2.96025]
[1745279534750,1.26634,1579.4,1579.3,7.02125]
[1745279535969,1.26634,1579.4,1579.3,5.7549]
[1745279536769,1.26634,1579.4,1579.3,7.02125]
[1745279539165,1.26634,1579.4,1579.3,5.7549]
[1745279541344,1.26634,1579.4,1579.3,1.6939]
[1745279541550,3.09404,1579.4,1579.3,1.6939]
[1745279543359,6.30184,1579.4,1579.3,1.6939]
[1745279544963,6.30184,1579.4,1579.3,2.5539]
[1745279546361,3.09404,1579.4,1579.3,2.5539]
[1745279547454,1.26634,1579.4,1579.3,2.5539]
[1745279556569,1.26634,1579.4,1579.3,3.82025]
[1745279556763,1.26634,1579.4,1579.3,2.5539]
[1745279558468,1.26634,1579.4,1579.3,3.82025]
[1745279562162,1.26634,1579.4,1579.3,2.5539]
[1745279562362,1.26634,1579.4,1579.3,3.82025]
[1745279563066,6.34746265,1579.6,1579.3,10.7617]
[1745279563274,6.34746265,1579.6,1579.5,1.26619]
[1745279563771,7.61357265,1579.6,1579.5,44.61249]
[1745279563972,6.34746265,1579.6,1579.5,44.61249]
[1745279564171,6.34746265,1579.6,1579.5,50.75849]
[1745279565669,6.18546265,1579.6,1579.5,53.96629]
[1745279566867,6.18546265,1579.6,1579.5,58.96629]
[1745279569173,1.26585,1580.0,1579.8,1.26589]
[1745279569368,1.26585,1580.0,1579.9,5.8079]
[1745279569573,1.26585,1580.0,1579.9,7.5465]
[1745279570275,1.26585,1580.0,1579.9,14.95837]
[1745279571177,1.26577,1580.1,1580.0,1.26578]
[1745279571376,1.26577,1580.1,1580.0,1.7386]
[1745279571677,1.26577,1580.1,1580.0,3.00439]
[1745279571974,1.26577,1580.1,1580.0,1.7386]
[1745279572178,1.26577,1580.1,1580.0,7.8846]
[1745279572370,3.07437,1580.1,1580.0,7.8846]
[1745279573879,1.26577,1580.1,1580.0,7.8846]
[1745279575176,3.05227,1580.1,1580.0,7.8846]
[1745279577872,3.05227,1580.1,1580.0,9.15039]
[1745279578179,1.26577,1580.1,1580.0,9.15039]
[1745279582185,1.26577,1580.1,1580.0,7.8846]
[1745279582576,2.98627,1580.1,1580.0,7.8846]
[1745279586783,2.98627,1580.1,1580.0,6.146]
[1745279587184,4.1223,1580.2,1579.8,0.00949878]
[1745279587390,1.26587,1579.9,1579.8,4.06049878]
[1745279587691,1.26587,1579.9,1579.8,5.73449878]
[1745279590094,1.26587,1579.9,1579.8,4.06049878]
[1745279590889,2.18337,1579.9,1579.8,0.00949878]
[1745279593289,1.26595,1579.8,1579.7,6.146]
[1745279593496,2.99665,1579.8,1579.7,6.146]
[1745279593995,6.20445,1579.8,1579.7,3.71749878]
[1745279595991,6.20445,1579.8,1579.7,5.44889878]
[1745279596500,4.47375,1579.8,1579.7,5.44889878]
[1745279599591,4.47375,1579.8,1579.7,6.37119878]
[1745279601798,4.47375,1579.8,1579.7,5.44889878]
[1745279605202,9.74203,1579.8,1579.7,3.71749878]
[1745279605502,10.66909973,1579.8,1579.7,8.78e-06]
[1745279605902,11.58810457,1579.8,1579.7,8.78e-06]
[1745279606097,11.58810457,1579.8,1579.6,0.00949878]
[1745279606305,2.75873,1579.7,1579.6,0.00949878]
[1745279606904,2.75873,1579.7,1579.6,1.84609878]
[1745279607803,1.26603,1579.7,1579.6,1.84609878]
[1745279616209,4.47383,1579.7,1579.6,1.84609878]
[1745279620707,4.47383,1579.7,1579.6,6.84609878]
[1745279621313,1.26603,1579.7,1579.6,6.84609878]
[1745279621910,1.5436462,1579.9,1579.6,8.11215878]
[1745279622110,1.5436462,1579.9,1579.7,6.13881]
[1745279622111,1.26592,1579.9,1579.7,6.13881]
[1745279622416,1.26592,1579.9,1579.8,2.54]
[1745279622712,1.26592,1579.9,1579.8,44.2046]
[1745279623215,1.26592,1579.9,1579.8,48.2566]
[1745279625919,9.6989875,1580.0,1579.8,49.52254]
[1745279626116,9.6989875,1580.0,1579.9,1.8213]
[1745279626422,1.26585,1580.0,1579.9,1.8213]
[1745279627212,1.26585,1580.0,1579.9,7.9673]
[1745279628129,1.26585,1580.0,1579.9,9.23317]
[1745279629026,1.26585,1580.0,1579.9,7.9673]
[1745279629321,1.26585,1580.0,1579.9,9.23317]
[1745279629519,1.26578,1580.1,1579.9,11.1751]
[1745279629723,1.26578,1580.1,1580.0,2.6326]
[1745279630118,1.26578,1580.1,1580.0,8.7786]
[1745279634625,1.26578,1580.1,1580.0,8.7786]
[1745279640826,1.26578,1580.1,1580.0,7.9402]
[1745279644827,1.26578,1580.1,1580.0,4.81105]
[1745279645027,1.26587,1579.9,1579.8,1.7067]
[1745279645230,4.47367,1579.9,1579.8,1.7067]
[1745279645535,1.26595,1579.8,1579.7,0.8502]
[1745279646233,1.26595,1579.8,1579.7,6.9962]
[1745279646933,1.26595,1579.8,1579.7,8.7861]
[1745279679756,1.26595,1579.8,1579.7,6.146]
[1745279680145,1.26595,1579.8,1579.7,8.7946]
[1745279685674,7.5936277,1579.8,1579.7,8.7946]
[1745279692780,9.6990875,1579.8,1579.7,8.7946]
[1745279696381,1.26595,1579.8,1579.7,8.7946]
[1745279700685,7.61881108,1579.8,1579.7,8.7946]
[1745279703980,9.6990875,1579.8,1579.7,8.7946]
[1745279708490,1.26595,1579.8,1579.7,8.7946]
[1745279710386,9.6990675,1579.9,1579.7,10.06062]
[1745279710591,9.6990675,1579.9,1579.8,2.5872]
[1745279712290,10.54142188,1580.0,1579.8,7.5872]
[1745279712485,10.54142188,1580.0,1579.9,5.844]
[1745279712688,10.54142188,1580.0,1579.9,7.10987]
[1745279712885,10.54142188,1580.0,1579.9,51.644]
[1745279713094,10.54142188,1580.0,1579.9,59.05587]
[1745279713893,6.23525938,1580.0,1579.9,59.05587]
[1745279714491,4.84985938,1580.0,1579.9,59.05587]
[1745279715897,1.26573,1580.1,1579.9,59.05587]
[1745279716091,1.26573,1580.1,1580.0,4.051]
[1745279716296,1.26571,1580.1,1580.0,4.051]
[1745279716590,3.16375,1580.4,1580.0,9.051]
[1745279716790,1.26569,1580.2,1580.1,3.2078]
[1745279717301,1.26569,1580.2,1580.1,46.6684]
[1745279717591,1.26563,1580.2,1580.1,43.4606]
[1745279717798,1.26562,1580.3,1580.1,43.4606]
[1745279717997,4.47333,1580.4,1580.2,2.7325]
[1745279718200,1.26553,1580.4,1580.3,1.8109]
[1745279718394,4.47333,1580.4,1580.3,1.8109]
[1745279719394,1.26553,1580.4,1580.3,1.8109]
[1745279720097,4.47333,1580.4,1580.3,1.8109]
[1745279720697,1.6711,1580.5,1580.3,1.8109]
[1745279720895,2.93654,1580.5,1580.3,1.8109]
[1745279721697,1.26547,1580.4,1580.3,1.8109]
[1745279723498,1.6711,1580.5,1580.1,46.12315]
[1745279723499,1.6711,1580.5,1580.1,44.8575]
[1745279723697,4.66599,1580.3,1580.1,46.5196]
[1745279723899,4.66599,1580.3,1580.2,2.5211]
[1745279724203,3.4004,1580.3,1580.2,2.5211]
[1745279725302,1.26547,1580.4,1580.2,2.5211]
[1745279725598,1.26547,1580.4,1580.3,1.832]
[1745279726301,2.99267,1580.4,1580.3,1.832]
[1745279726602,1.7272,1580.4,1580.3,1.832]
[1745279726996,2.12505,1580.5,1580.3,1.832]
[1745279727498,3.85225,1580.5,1580.3,3.09752]
[1745279728403,3.85225,1580.5,1580.4,1.7624]
[1745279729698,2.14065,1580.6,1580.4,3.02787]
[1745279729897,3.04905,1580.6,1580.4,3.5771]
[1745279730198,3.04905,1580.6,1580.5,1.7624]
[1745279730199,1.26531,1580.6,1580.5,1.7624]
[1745279733006,1.26531,1580.6,1580.5,3.02777]
[1745279733205,3.9554,1580.7,1580.5,9.17377]
[1745279733408,1.26531,1580.6,1580.5,9.17377]
[1745279733708,1.26531,1580.6,1580.5,7.9084]
[1745279733906,3.00681,1580.6,1580.5,7.9084]
[1745279735201,3.00681,1580.6,1580.5,1.7624]
[1745279736307,3.00681,1580.6,1580.5,7.9084]
[1745279737207,3.00681,1580.6,1580.5,1.7624]
[1745279738307,3.00681,1580.6,1580.5,7.9084]
[1745279741613,1.26531,1580.6,1580.5,7.9084]
[1745279742607,3.03077,1580.7,1580.5,9.17379]
[1745279742909,1.26527,1580.7,1580.6,1.8202]
[1745279743107,1.26527,1580.7,1580.6,2.7262]
[1745279747608,1.2652,1580.8,1580.6,3.99149]
[1745279747914,1.2652,1580.8,1580.7,2.5445]
[1745279748116,1.2652,1580.8,1580.7,8.6905]
[1745279754720,4.473,1580.8,1580.7,7.8549]
[1745279754921,3.106,1580.8,1580.7,7.8549]
[1745279755122,6.3138,1580.8,1580.7,6.146]
[1745279755323,7.2063,1580.8,1580.7,6.146]
[1745279756924,3.9985,1580.8,1580.7,6.146]
[1745279757128,3.9985,1580.8,1580.7,7.8617]
[1745279757619,3.9985,1580.8,1580.7,6.146]
[1745279757811,8.1485,1580.8,1580.7,6.146]
[1745279761226,1.2652,1580.8,1580.7,6.146]
[1745279761728,1.2652,1580.8,1580.7,7.9018]
[1745279761926,21.95214425,1581.0,1580.7,11.1096]
[1745279762130,1.26507,1580.9,1580.8,3.5032]
[1745279763020,8.41664425,1581.0,1580.8,8.5032]
[1745279763220,8.41664425,1581.0,1580.9,6.22867]
[1745279763428,8.41664425,1581.0,1580.9,10.35167]
[1745279763622,8.41664425,1581.0,1580.9,15.35167]
[1745279764019,9.68163425,1581.0,1580.9,14.0866]
[1745279764222,9.68163425,1581.0,1580.9,15.2326]
[1745279764525,1.26499,1581.0,1580.9,15.2326]
[1745279766331,9.68151425,1581.2,1581.0,1.26496]
[1745279766630,9.68151425,1581.2,1581.1,5.7995]
[1745279766830,9.68151425,1581.2,1581.1,6.6642]
[1745279768142,8.41664425,1581.2,1581.1,7.92911]
[1745279768727,8.41664425,1581.2,1581.1,6.6642]
[1745279768928,8.41664425,1581.2,1581.1,7.92911]
[1745279769233,1.26471,1581.4,1581.2,1.26481]
[1745279769435,1.26471,1581.4,1581.3,1.7804]
[1745279769836,4.47245,1581.5,1581.3,42.5804]
[1745279770032,4.47245,1581.5,1581.4,1.7696]
[1745279770233,1.26465,1581.5,1581.4,3.55]
[1745279771131,1.26465,1581.5,1581.4,9.696]
[1745279771829,3.09245,1581.5,1581.4,9.696]
[1745279773737,1.26465,1581.5,1581.4,9.696]
[1745279773933,3.06126,1581.6,1581.4,9.696]
[1745279774135,1.26456,1581.6,1581.5,1.7332]
[1745279774734,3.06126,1581.6,1581.5,1.7332]
[1745279775341,1.26459,1581.5,1581.4,0.9011]
[1745279775534,3.90329,1581.5,1581.4,0.9011]
[1745279775839,3.90329,1581.5,1581.4,2.6343]
[1745279776238,3.90329,1581.5,1581.4,8.7803]
[1745279777242,1.26459,1581.5,1581.4,2.6343]
[1745279777843,1.26459,1581.5,1581.4,1.7332]
[1745279781145,1.26467,1581.4,1581.3,3.2078]
[1745279781339,4.76207,1581.4,1581.3,3.2078]
[1745279781743,4.76207,1581.4,1581.3,4.9529]
[1745279783237,1.26483,1581.2,1581.1,40.80949878]
[1745279783438,1.26483,1581.2,1581.1,42.58339878]
[1745279783646,1.26483,1581.2,1581.1,44.27339878]
[1745279784347,1.26483,1581.2,1581.1,42.58339878]
[1745279784533,1.26499,1581.0,1580.9,3.2078]
[1745279784739,1.26509,1580.9,1580.7,8.85012]
[1745279785046,1.26509,1580.9,1580.8,4.9817]
[1745279785342,1.26509,1580.9,1580.8,3.2078]
[1745279785545,1.26509,1580.9,1580.8,4.9817]
[1745279786440,2.98899,1580.9,1580.8,4.9817]
[1745279786746,0.88869878,1581.0,1580.8,6.24682]
[1745279786747,1.27451878,1581.0,1580.8,6.24682]
[1745279787042,1.27451878,1581.0,1580.9,1.8146]
[1745279787246,1.27451878,1581.0,1580.9,2.7095]
[1745279788150,1.27451878,1581.0,1580.9,8.8555]
[1745279789147,0.00949878,1581.0,1580.9,8.8555]
[1745279789341,1.27448878,1581.0,1580.9,8.8555]
[1745279791145,0.00949878,1581.0,1580.9,8.8555]
[1745279791457,0.00949878,1581.0,1580.9,10.12057]
[1745279791752,0.00949878,1581.0,1580.9,8.8555]
[1745279792051,1.27448878,1581.0,1580.9,8.8555]
[1745279792348,3.02418878,1581.0,1580.9,8.8555]
[1745279794743,3.02418878,1581.0,1580.9,6.146]
[1745279795243,1.26507,1580.9,1580.8,1.7016]
[1745279795549,4.89417,1580.9,1580.8,1.7016]
[1745279795755,1.26515,1580.8,1580.7,0.84699878]
[1745279795949,1.26515,1580.8,1580.7,2.54859878]
[1745279796247,1.26515,1580.8,1580.7,8.69459878]
[1745279799557,2.93425,1580.8,1580.7,8.69459878]
[1745279800753,2.93425,1580.8,1580.7,7.85709878]
[1745279801254,2.93425,1580.8,1580.7,1.71109878]
[1745279804255,2.93425,1580.8,1580.7,7.85709878]
[1745279805155,1.26515,1580.8,1580.7,1.71109878]
[1745279806257,3.21729878,1581.0,1580.7,2.97630878]
[1745279806452,1.26509,1580.9,1580.8,0.8791]
[1745279806659,1.26509,1580.9,1580.8,5.778]
[1745279809858,1.28944878,1581.0,1580.8,5.778]
[1745279810061,1.28944878,1581.0,1580.9,1.6886]
[1745279810355,1.27454878,1581.0,1580.9,1.6886]
[1745279810559,1.26507,1580.9,1580.8,0.8791]
[1745279810759,1.26507,1580.9,1580.8,2.5561]
[1745279811460,3.04257,1580.9,1580.8,2.5561]
[1745279811761,3.04257,1580.9,1580.8,1.677]
[1745279812166,1.26507,1580.9,1580.8,1.677]
[1745279812465,1.26507,1580.9,1580.8,2.585]
[1745279817964,1.26507,1580.9,1580.8,1.677]
[1745279817965,4.47287,1580.9,1580.8,1.677]
[1745279818265,5.38607,1580.9,1580.8,1.677]
[1745279818863,1.26515,1580.8,1580.7,0.89229878]
[1745279819060,1.26515,1580.8,1580.7,2.58989878]
[1745279819061,2.10905,1580.8,1580.7,2.58989878]
[1745279819361,2.10905,1580.8,1580.7,8.73589878]
[1745279819564,2.10905,1580.8,1580.7,7.85309878]
[1745279819866,1.26539,1580.5,1580.4,4.141]
[1745279820263,1.26539,1580.5,1580.4,7.9034]
[1745279820765,2.11439,1580.5,1580.4,7.9034]
[1745279820958,3.78569,1580.5,1580.4,7.9034]
[1745279821159,3.78569,1580.5,1580.4,1.7574]
[1745279821360,1.26539,1580.5,1580.4,1.7574]
[1745279822060,1.26539,1580.5,1580.4,7.9034]
[1745279822975,2.95339,1580.5,1580.4,7.9034]
[1745279823457,1.26539,1580.5,1580.4,7.9034]
[1745279825264,1.26539,1580.5,1580.4,8.7956]
[1745279827360,1.26538,1580.6,1580.4,8.7956]
[1745279827556,1.2653,1580.7,1580.5,1.7084]
[1745279827766,1.26523,1580.7,1580.6,0.831]
[1745279828268,1.26523,1580.7,1580.6,2.5394]
[1745279837267,0.0149,1580.8,1580.6,7.5394]
[1745279837471,0.0149,1580.8,1580.7,7.03843]
[1745279837875,8.42614303,1581.0,1580.7,12.03843]
[1745279838075,9.69113303,1581.0,1580.9,3.2078]
[1745279838678,9.69113303,1581.0,1580.9,4.1166]
[1745279839266,9.69113303,1581.0,1580.9,10.2626]
[1745279841174,1.27448878,1581.0,1580.9,10.2626]
[1745279841466,1.27448878,1581.0,1580.9,12.0691]
[1745279843371,1.27448878,1581.0,1580.9,11.1603]
[1745279843675,13.61928878,1581.0,1580.9,3.72699757]
[1745279844062,8.61928878,1581.0,1580.9,3.72699757]
[1745279844264,1.26515,1580.8,1580.7,2.5528]
[1745279846071,1.26515,1580.8,1580.7,8.6988]
[1745279847472,2.97025,1580.8,1580.7,8.6988]
[1745279848474,2.97025,1580.8,1580.7,6.146]
[1745279849174,1.26523,1580.7,1580.6,3.2078]
[1745279849371,2.97033,1580.7,1580.6,3.2078]
[1745279851074,1.26531,1580.6,1580.5,1.8332]
[1745279851272,3.86241,1580.6,1580.5,1.8332]
[1745279851573,4.74921,1580.6,1580.5,1.8332]
[1745279852064,3.86241,1580.6,1580.5,7.9792]
[1745279852268,1.26531,1580.6,1580.5,7.9792]
[1745279853969,2.96311,1580.6,1580.5,7.9792]
[1745279854170,2.96311,1580.6,1580.5,1.8332]
[1745279855178,2.96311,1580.6,1580.5,7.9792]
[1745279857478,2.97801,1580.6,1580.5,7.9792]
[1745279859081,3.87521,1580.6,1580.5,7.9792]
[1745279860574,1.28021,1580.6,1580.5,7.9792]
[1745279865383,1.28021,1580.6,1580.5,6.146]
[1745279865687,6.25461,1580.6,1580.5,6.146]
[1745279868290,6.25461,1580.6,1580.5,7.9365]
[1745279869081,1.28021,1580.6,1580.5,7.9365]
[1745279873197,4.48801,1580.6,1580.5,6.66222]
[1745279873397,6.31031,1580.6,1580.5,6.66222]
[1745279873599,6.31031,1580.6,1580.5,4.87172]
[1745279874191,1.26539,1580.5,1580.4,2.6831]
[1745279874498,2.16639,1580.5,1580.4,2.6831]
[1745279875800,3.82999,1580.5,1580.4,2.6831]
[1745279876195,3.84489,1580.5,1580.4,2.6831]
[1745279877197,3.84489,1580.5,1580.4,8.8291]
[1745279879201,3.84489,1580.5,1580.4,2.6831]
[1745279880193,3.84489,1580.5,1580.4,8.8291]
[1745279880901,1.28029,1580.5,1580.4,8.8291]
[1745279885703,0.0149,1580.5,1580.4,15.09457]
[1745279885900,0.0149,1580.5,1580.4,19.16457]
[1745279887099,1.28029,1580.5,1580.4,19.16457]
[1745279887301,0.0149,1580.5,1580.4,19.16457]
[1745279889698,0.0149,1580.5,1580.4,22.37237]
[1745279892295,1.28029,1580.5,1580.4,17.37237]
[1745279892498,0.0149,1580.5,1580.4,22.37237]
[1745279893105,1.28029,1580.5,1580.4,22.37237]
[1745279893408,1.28029,1580.5,1580.4,17.37237]
[1745279894504,0.0149,1580.5,1580.4,17.37237]
[1745279895608,1.28029,1580.5,1580.4,17.37237]
[1745279896210,0.0149,1580.5,1580.4,17.37237]
[1745279899610,0.0149,1580.5,1580.4,14.16457]
[1745279900010,0.0149,1580.5,1580.4,17.37237]
[1745279900510,1.26529,1580.7,1580.6,1.26531]
[1745279900704,1.26529,1580.7,1580.6,4.47311]
[1745279901210,1.26529,1580.7,1580.6,4.9547]
[1745279901613,1.26529,1580.7,1580.6,6.6504]
[1745279904615,1.26529,1580.7,1580.6,7.91571]
[1745279905017,1.26529,1580.7,1580.6,6.6504]
[1745279909815,1.26529,1580.7,1580.6,5.7385]
[1745279910115,1.26531,1580.6,1580.5,6.146]
[1745279910321,2.98501,1580.6,1580.5,7.8864]
[1745279911121,2.98501,1580.6,1580.5,6.146]
[1745279912217,2.98501,1580.6,1580.4,7.2778]
[1745279912218,1.26539,1580.5,1580.4,7.2778]
[1745279912418,3.93609,1580.5,1580.4,7.2778]
[1745279913216,3.93609,1580.5,1580.4,13.4238]
[1745279913711,3.93609,1580.5,1580.4,15.1561]
[1745279915420,3.93609,1580.5,1580.4,13.4238]
[1745279917023,3.93609,1580.5,1580.4,15.1861]
[1745279920529,1.26539,1580.5,1580.4,16.45157]
[1745279922730,1.26539,1580.5,1580.4,13.24377]
[1745279922931,1.26539,1580.5,1580.4,16.45157]
[1745279923230,1.26539,1580.5,1580.4,15.1861]
[1745279924833,1.26539,1580.5,1580.4,16.45157]
[1745279925227,1.26539,1580.5,1580.4,15.1861]
[1745279925631,1.26539,1580.5,1580.4,16.45157]
[1745279926933,1.26539,1580.5,1580.4,15.1861]
[1745279929539,1.26533,1580.6,1580.4,15.1861]
[1745279929833,1.26533,1580.6,1580.5,3.95451]
[1745279930034,1.26533,1580.6,1580.5,4.80301]
[1745279930534,1.26533,1580.6,1580.5,3.5377]
[1745279931234,7.41133,1580.6,1580.5,3.5377]
[1745279944141,6.146,1580.6,1580.5,4.80309]
[1745279944536,7.41131,1580.6,1580.5,3.5377]
[1745279945235,1.26531,1580.6,1580.5,4.80309]
[1745279945938,1.26531,1580.6,1580.5,3.5377]
[1745279946143,7.41131,1580.6,1580.5,3.5377]
[1745279946335,9.24111,1580.6,1580.5,3.5377]
[1745279948345,9.24111,1580.6,1580.5,1.8391]
[1745279948542,10.08641,1580.6,1580.5,1.8391]